bitfinex/quotes_SOLUSD_20241205
["timestamp","ask_amount","ask_price","bid_price","bid_amount"]
[1733360054930,137.7,227.11,226.96,1.5176]
[1733360056449,20.0,227.08,226.96,1.5176]
[1733360057855,20.0,227.09,226.96,1.5176]
[1733360058545,5.12616827,227.16,226.96,1.5176]
[1733360058747,14.09457488,227.16,226.96,1.5176]
[1733360058954,139.2518,227.17,226.96,1.5176]
[1733360059145,5.12616827,227.15,226.96,1.5176]
[1733360059658,20.0,227.12,226.96,1.5176]
[1733360060250,5.12616827,227.15,226.96,1.5176]
[1733360060443,5.12616827,227.15,226.98,6.2759]
[1733360061143,5.12616827,227.2,227.0,6.2759]
[1733360061972,5.12616827,227.2,227.01,6.2759]
[1733360062171,4.80484171,227.25,226.97,11.0146]
[1733360062172,9.00911351,227.25,227.05,6.2759]
[1733360062338,5.12616827,227.29,227.06,1.5072]
[1733360062543,5.12616827,227.29,227.07,6.2759]
[1733360062745,14.00142203,227.29,227.07,6.2759]
[1733360063063,137.7,227.3,227.07,6.2759]
[1733360063274,137.7,227.29,227.07,6.2759]
[1733360063769,20.0,227.26,227.07,6.2759]
[1733360069674,4.80484171,227.29,227.08,7.9116]
[1733360069864,8.8100852,227.3,227.12,6.3871]
[1733360070071,9.53441158,227.33,227.12,6.3871]
[1733360070270,4.40824331,227.33,227.12,6.3871]
[1733360070580,5.12616827,227.32,227.12,6.3871]
[1733360071077,5.12616827,227.32,227.12,11.3824445]
[1733360071282,13.70651202,227.32,227.13,6.5081]
[1733360072277,20.0,227.29,227.13,6.5081]
[1733360073256,20.0,227.29,227.14,1.6617]
[1733360073456,20.0,227.29,227.15,6.0685]
[1733360075393,20.0,227.29,227.16,6.5563]
[1733360075564,20.0,227.3,227.16,6.5563]
[1733360075759,137.7,227.41,227.16,6.5563]
[1733360075972,4.80484171,227.4,227.16,6.5563]
[1733360076724,4.80484171,227.4,227.19,6.142]
[1733360076886,4.80484171,227.4,227.21,6.142]
[1733360077063,137.7,227.45,227.21,6.142]
[1733360077263,137.7,227.44,227.21,6.142]
[1733360077465,137.7,227.44,227.22,6.0511]
[1733360077690,4.80484171,227.45,227.23,7.45270773]
[1733360077864,4.80484171,227.45,227.24,6.0511]
[1733360078065,4.80484171,227.45,227.23,12.45270773]
[1733360078066,4.80484171,227.45,227.26,6.4378]
[1733360078271,4.40824331,227.48,227.27,1.6419]
[1733360078477,4.40824331,227.48,227.28,6.4378]
[1733360078700,142.50484171,227.5,227.28,6.4378]
[1733360078867,142.50484171,227.5,227.29,4.9953445]
[1733360079070,5.97324331,227.53,227.3,6.1504]
[1733360079375,217.9242322,227.52,227.3,6.1504]
[1733360079771,4.40824331,227.51,227.3,6.1504]
[1733360079972,5.09806393,227.5,227.3,6.1504]
[1733360080196,20.0,227.47,227.3,6.1504]
[1733360080569,4.40824331,227.51,227.3,6.1504]
[1733360080570,20.0,227.46,227.3,6.1504]
[1733360080766,30.2242322,227.46,227.3,6.1504]
[1733360081291,137.7,227.44,227.3,6.1504]
[1733360081596,20.0,227.41,227.3,6.1504]
[1733360081805,25.12616827,227.4,227.3,6.1504]
[1733360081971,30.2242322,227.4,227.3,6.1504]
[1733360082979,20.0,227.39,227.3,6.1504]
[1733360083201,20.0,227.36,227.22,6.282]
[1733360083367,20.0,227.35,227.22,6.282]
[1733360086886,20.0,227.34,227.22,6.282]
[1733360087285,20.0,227.33,227.22,6.282]
[1733360087489,20.0,227.31,227.22,6.282]
[1733360087690,20.0,227.27,227.15,6.5069]
[1733360088022,20.0,227.23,227.15,6.5069]
[1733360088224,20.0,227.19,227.09,6.5069]
[1733360090804,14.04931119,227.27,227.09,6.5069]
[1733360092132,20.0,227.24,227.09,6.5069]
[1733360092328,137.7,227.32,227.09,6.5069]
[1733360092628,137.7,227.33,227.09,6.5069]
[1733360092918,9.25797276,227.34,227.13,6.3951]
[1733360093090,8.96797363,227.35,227.14,5.0]
[1733360093286,137.7,227.4,227.15,5.87328425]
[1733360093530,137.7,227.4,227.16,11.6106]
[1733360093689,9.25797276,227.41,227.16,11.6106]
[1733360093690,9.25797276,227.41,227.17,5.87317084]
[1733360093889,5.09806393,227.41,227.21,20.0]
[1733360094089,5.09806393,227.47,227.22,0.87764698]
[1733360094394,142.79806393,227.47,227.22,0.87764698]
[1733360094919,137.7,227.46,227.21,29.9953445]
[1733360095092,142.79806393,227.46,227.21,30.87301782]
[1733360095723,20.0,227.43,227.21,30.87301782]
[1733360096733,20.0,227.43,227.21,25.87767332]
[1733360098323,20.0,227.43,227.2,6.6106]
[1733360098496,20.0,227.4,227.2,6.6106]
[1733360098697,20.0,227.38,227.2,6.6106]
[1733360101941,20.0,227.39,227.2,6.6106]
[1733360102722,20.0,227.38,227.2,6.6106]
[1733360103809,20.0,227.36,227.2,6.6106]
[1733360104328,20.0,227.37,227.2,6.6106]
[1733360104723,20.0,227.36,227.2,6.6106]
[1733360108126,157.7,227.36,227.2,6.6106]
[1733360108334,20.0,227.31,227.2,6.6106]
[1733360108504,20.0,227.26,227.2,6.6106]
[1733360109038,20.0,227.26,227.13,6.0267]
[1733360109238,20.0,227.22,227.13,6.0267]
[1733360109803,20.0,227.21,227.13,6.0267]
[1733360110035,20.0,227.2,227.13,6.0267]
[1733360110534,20.0,227.2,227.12,0.19722385]
[1733360110707,25.40205716,227.19,227.12,0.19722385]
[1733360111644,20.0,227.18,227.12,0.19722385]
[1733360111946,20.0,227.15,227.12,0.19722385]
[1733360112138,20.0,227.14,227.12,0.19722385]
[1733360112337,157.7,227.14,227.12,0.19722385]
[1733360114038,166.36191486,227.14,227.12,0.19722385]
[1733360115929,5.40205716,227.13,227.12,0.19722385]
[1733360118650,10.50012109,227.13,227.12,0.19722385]
[1733360119916,137.7,227.12,227.02,6.5882]
[1733360120116,20.0,227.08,226.94,0.5115196]
[1733360120819,214.41596393,227.11,226.94,0.5115196]
[1733360120820,20.0,227.04,226.94,0.5115196]
[1733360122945,76.71596393,227.11,226.94,0.5115196]
[1733360122946,20.0,226.99,226.94,0.5115196]
[1733360125445,20.0,227.03,226.94,0.5115196]
[1733360126621,8.86154226,227.06,226.94,0.5115196]
[1733360126821,137.7,227.1,226.94,0.5115196]
[1733360127533,146.39366314,227.1,226.94,0.5115196]
[1733360127740,8.69366314,227.1,226.95,7.996]
[1733360127950,5.09806393,227.11,226.95,7.996]
[1733360128252,8.75533283,227.11,226.95,7.996]
[1733360128426,137.7,227.14,226.95,7.996]
[1733360128744,137.7,227.16,226.95,12.9913445]
[1733360129047,137.7,227.2,226.96,6.4134]
[1733360129343,137.7,227.19,226.96,6.4134]
[1733360129548,142.10824331,227.21,226.98,6.4134]
[1733360129857,142.10824331,227.21,227.0,6.4134]
[1733360129858,5.40205716,227.2,227.0,6.4134]
[1733360130057,5.09806393,227.22,227.02,6.4134]
[1733360130723,14.09386006,227.22,227.02,6.4134]
[1733360131038,20.0,227.19,227.02,6.4134]
[1733360131726,157.7,227.17,227.02,6.4134]
[1733360132245,20.0,227.16,227.02,6.4134]
[1733360134853,20.0,227.14,227.02,6.4134]
[1733360135554,137.7,227.23,227.02,6.4134]
[1733360135924,142.79806393,227.24,227.02,6.4134]
[1733360136124,75.09806393,227.23,227.02,6.4134]
[1733360136359,5.09806393,227.22,227.02,6.4134]
[1733360136654,20.0,227.19,227.02,6.4134]
[1733360136828,20.0,227.18,227.02,6.4134]
[1733360139265,20.0,227.14,226.95,6.2473]
[1733360139959,20.0,227.14,226.96,7.8669]
[1733360140336,20.0,227.14,226.97,6.2473]
[1733360140957,20.0,227.14,226.98,6.3177]
[1733360141538,137.7,227.21,226.98,6.3177]
[1733360141539,137.7,227.21,226.99,4.9953445]
[1733360141734,1.5491,227.22,227.0,6.3177]
[1733360142041,1.5491,227.22,227.01,1.5968]
[1733360142868,91.5491,227.22,227.01,1.5968]
[1733360143042,20.0,227.19,227.01,1.5968]
[1733360144158,10.55748309,227.22,227.01,1.5968]
[1733360144947,80.55748309,227.22,227.01,1.5968]
[1733360145139,20.0,227.19,227.01,1.5968]
[1733360147238,20.0,227.18,227.01,1.5968]
[1733360152534,5.09763247,227.17,227.01,1.5968]
[1733360152733,20.0,227.13,227.01,1.5968]
[1733360153130,20.0,227.12,227.01,1.5968]
[1733360154241,20.0,227.11,227.01,1.5968]
[1733360155462,20.0,227.14,227.01,1.5968]
[1733360156052,5.09763247,227.17,227.01,1.5968]
[1733360156233,5.09763247,227.17,227.02,6.3995]
[1733360156438,137.7,227.2,227.02,6.3995]
[1733360156659,146.60382745,227.2,227.02,6.3995]
[1733360156971,0.04174216,227.19,227.02,6.3995]
[1733360157753,20.0,227.17,227.02,6.3995]
[1733360161170,5.08253574,227.16,227.02,6.3995]
[1733360161470,20.0,227.13,227.02,6.3995]
[1733360162166,20.0,227.12,227.02,6.3995]
[1733360162577,20.0,227.13,227.02,6.3995]
[1733360163416,20.04174216,227.13,227.02,6.3995]
[1733360163884,20.0,227.13,227.02,6.3995]
[1733360165897,8.93649102,227.17,227.02,6.3995]
[1733360166079,13.9772846,227.17,227.02,6.3995]
[1733360166400,5.08253574,227.16,227.02,6.3995]
[1733360167345,20.0,227.13,227.02,6.3995]
[1733360167829,20.04174216,227.13,227.02,6.3995]
[1733360169233,5.04079358,227.16,227.02,6.3995]
[1733360169234,20.0,227.09,227.02,6.3995]
[1733360171930,20.0,227.09,226.97,6.5909]
[1733360172130,20.0,227.06,226.97,6.5909]
[1733360172431,20.0,227.03,226.97,6.5909]
[1733360173832,20.0,227.03,226.94,0.5115196]
[1733360174026,20.0,226.99,226.94,0.5115196]
[1733360175544,25.35930161,226.99,226.94,0.5115196]
[1733360177137,20.0,226.98,226.94,0.5115196]
[1733360177817,25.33987383,226.98,226.94,0.5115196]
[1733360178919,20.0,226.98,226.94,0.5115196]
[1733360179238,20.0,226.95,226.94,0.5115196]
[1733360181246,5.33987383,226.97,226.94,0.5115196]
[1733360183034,137.7,226.96,226.94,0.5115196]
[1733360183959,143.03987383,226.96,226.94,0.5115196]
[1733360185166,5.33987383,226.95,226.94,0.5115196]
[1733360187656,148.08066741,226.95,226.94,0.5115196]
[1733360188936,81.97816741,226.95,226.94,0.5115196]
[1733360189359,85.51807458,226.95,226.94,0.5115196]
[1733360191166,15.51807458,226.95,226.94,0.5115196]
[1733360192565,85.51807458,226.95,226.94,0.5115196]
[1733360193978,15.51807458,226.95,226.94,0.5115196]
[1733360194179,8.879781,226.95,226.94,0.5115196]
[1733360195353,5.33987383,226.95,226.94,0.5115196]
[1733360197867,20.0,226.95,226.94,0.5115196]
[1733360201573,25.33987383,226.95,226.94,0.5115196]
[1733360203062,25.33987383,226.95,226.94,1e-08]
[1733360205372,20.0,226.91,226.86,41.66666667]
[1733360205864,20.0,226.9,226.86,41.66666667]
[1733360206265,20.0,226.89,226.86,41.66666667]
[1733360209587,20.0,226.88,226.86,41.66666667]
[1733360210256,19.0,226.88,226.86,41.66666667]
[1733360211086,29.26373963,226.88,226.86,41.66666667]
[1733360211279,29.26373963,226.88,226.86,38.6672975]
[1733360212395,20.0,226.87,226.86,38.6672975]
[1733360212783,21.6077,226.87,226.86,15.60655784]
[1733360213008,20.0,226.85,226.72,0.5115196]
[1733360213182,20.0,226.83,226.72,0.5115196]
[1733360213385,20.0,226.82,226.72,0.5115196]
[1733360216106,20.0,226.78,226.72,0.5115196]
[1733360222110,20.0,226.79,226.72,0.5115196]
[1733360222312,137.7,226.85,226.72,0.5115196]
[1733360222622,10.14681186,226.84,226.72,0.5115196]
[1733360223421,20.0,226.81,226.72,0.5115196]
[1733360223934,20.0,226.79,226.72,0.5115196]
[1733360224222,25.10601828,226.81,226.72,0.5115196]
[1733360224411,20.0,226.81,226.72,0.5115196]
[1733360225009,20.0,226.77,226.72,0.5115196]
[1733360227051,28.90072918,226.77,226.72,0.5115196]
[1733360228058,20.0,226.77,226.72,0.5115196]
[1733360230857,20.0,226.75,226.72,0.5115196]
[1733360235948,20.0,226.76,226.72,0.5115196]
[1733360236347,137.7,226.79,226.72,0.5115196]
[1733360237169,14.06059901,226.8,226.72,0.5115196]
[1733360237766,20.0,226.77,226.72,0.5115196]
[1733360239365,20.0,226.79,226.72,0.5115196]
[1733360240074,5.02960716,226.82,226.72,0.5115196]
[1733360241068,8.7734338,226.83,226.72,0.5115196]
[1733360241382,4.86890469,226.85,226.72,0.5115196]
[1733360242276,20.0,226.84,226.72,0.5115196]
[1733360242482,20.0,226.82,226.72,0.5115196]
[1733360245479,20.0,226.84,226.72,0.5115196]
[1733360246078,4.16337381,226.83,226.72,0.5115196]
[1733360246281,24.16337381,226.83,226.72,0.5115196]
[1733360246666,20.0,226.81,226.72,0.5115196]
[1733360248665,4.16337381,226.83,226.72,0.5115196]
[1733360248666,20.0,226.79,226.72,0.5115196]
[1733360252175,20.0,226.8,226.72,0.5115196]
[1733360252378,20.0,226.83,226.72,0.5115196]
[1733360252767,20.0,226.81,226.72,0.5115196]
[1733360254494,9.03013665,226.84,226.72,0.5115196]
[1733360254670,137.7,226.86,226.72,0.5115196]
[1733360254870,8.69125869,226.86,226.72,0.5115196]
[1733360255068,4.16337381,226.88,226.72,0.5115196]
[1733360255264,13.07242096,226.88,226.73,1.6199]
[1733360255491,4.85763803,226.9,226.74,6.2811]
[1733360255799,1.61882651,226.89,226.74,6.2811]
[1733360256173,4.85763803,226.9,226.74,6.2811]
[1733360256586,13.64324233,226.9,226.74,7.16063204]
[1733360256797,4.85763803,226.9,226.74,7.16063204]
[1733360258310,20.0,226.88,226.74,6.2811]
[1733360259340,20.0,226.88,226.74,7.16061198]
[1733360259621,20.0,226.9,226.74,7.16061198]
[1733360259818,20.0,226.9,226.74,6.2811]
[1733360268636,20.66740557,226.9,226.74,6.2811]
[1733360268807,24.83077938,226.9,226.74,6.2811]
[1733360270430,24.83077938,226.89,226.74,6.2811]
[1733360270633,29.68841741,226.89,226.74,6.2811]
[1733360272119,20.0,226.85,226.74,6.2811]
[1733360272535,24.83077938,226.85,226.74,6.2811]
[1733360272742,4.83077938,226.84,226.74,6.2811]
[1733360272941,24.83077938,226.84,226.74,6.2811]
[1733360273244,20.0,226.81,226.74,6.2811]
[1733360279548,20.0,226.8,226.72,0.5115196]
[1733360279858,20.0,226.74,226.7,9.95236436]
[1733360280158,20.0,226.71,226.7,0.89625162]
[1733360281952,94.36385888,226.71,226.7,0.89625162]
[1733360282460,99.70019382,226.71,226.7,0.89625162]
[1733360283274,32.96785499,226.71,226.7,0.89625162]
[1733360284959,170.66785499,226.71,226.7,0.89625162]
[1733360286633,20.0,226.66,226.51,6.2117]
[1733360286956,20.0,226.62,226.51,6.2117]
[1733360289174,19.0,226.62,226.51,6.2117]
[1733360289679,27.72492047,226.62,226.51,6.2117]
[1733360299252,27.52811694,226.62,226.51,6.2117]
[1733360300768,27.52811694,226.62,226.49,0.5115196]
[1733360303790,157.7,226.61,226.49,0.5115196]
[1733360304787,20.0,226.59,226.49,0.5115196]
[1733360305288,20.0,226.58,226.49,0.5115196]
[1733360307471,137.7,226.61,226.49,0.5115196]
[1733360307785,137.7,226.61,226.49,1.39211382]
[1733360308496,137.7,226.61,226.49,0.5115196]
[1733360308790,20.0,226.58,226.49,0.5115196]
[1733360309391,20.0,226.59,226.49,0.5115196]
[1733360315382,20.0,226.58,226.49,0.5115196]
[1733360321489,20.0,226.59,226.49,0.5115196]
[1733360323289,21.621,226.55,226.54,6.39751]
[1733360323618,32.95045074,226.55,226.54,6.39751]
[1733360323992,5.59489049,226.54,226.49,0.5115196]
[1733360324188,20.0,226.51,226.49,0.5115196]
[1733360326318,20.0,226.51,226.49,1e-08]
[1733360327119,157.7,226.5,226.49,1e-08]
[1733360328424,20.0,226.5,226.49,1e-08]
[1733360328626,25.59489049,226.5,226.49,1e-08]
[1733360333238,20.0,226.5,226.49,1e-08]
[1733360334113,20.0,226.49,226.38,48.12246667]
[1733360334318,20.0,226.46,226.38,48.12246667]
[1733360334918,20.0,226.49,226.38,48.12246667]
[1733360339547,20.0,226.48,226.38,48.12246667]
[1733360342428,20.0,226.5,226.38,48.12246667]
[1733360344148,1.621,226.55,226.39,0.88103]
[1733360345243,20.0,226.54,226.39,0.88103]
[1733360345646,20.0,226.52,226.39,0.88103]
[1733360345957,8.93127482,226.55,226.39,5.88103]
[1733360346155,14.42272368,226.57,226.39,5.88103]
[1733360347248,20.0,226.54,226.39,5.88103]
[1733360348077,20.0,226.54,226.39,0.88103]
[1733360350053,20.0,226.54,226.41,6.4228]
[1733360350253,137.7,226.61,226.43,6.4228]
[1733360350460,8.86612062,226.61,226.44,2.41795809]
[1733360350779,5.73456025,226.64,226.44,2.41795809]
[1733360351145,5.73456025,226.64,226.46,6.2033]
[1733360351474,5.73456025,226.64,226.47,0.88054462]
[1733360351676,19.93942511,226.64,226.46,6.2033]
[1733360351969,11.26928963,226.63,226.46,6.2033]
[1733360352358,20.0,226.6,226.46,6.2033]
[1733360352953,20.0,226.6,226.46,7.08392462]
[1733360353343,20.0,226.6,226.46,12.08392462]
[1733360353759,5.73456025,226.63,226.47,8.1155]
[1733360353957,5.73456025,226.63,226.48,0.88050553]
[1733360354372,5.73456025,226.63,226.49,6.4513]
[1733360354555,8.62469064,226.65,226.5,0.88043201]
[1733360354761,5.69635754,226.68,226.5,0.88043201]
[1733360356083,5.69635754,226.68,226.49,6.4513]
[1733360356283,20.0,226.64,226.49,6.4513]
[1733360356498,11.23108692,226.63,226.49,6.4513]
[1733360356661,20.0,226.6,226.49,6.4513]
[1733360358491,20.0,226.65,226.49,6.4513]
[1733360358781,137.7,226.67,226.49,6.4513]
[1733360358782,20.0,226.64,226.49,6.4513]
[1733360359366,8.71432983,226.67,226.51,6.2993]
[1733360359671,143.39635754,226.74,226.54,1.6319]
[1733360359986,5.69635754,226.73,226.55,7.17954315]
[1733360360693,137.7,226.74,226.55,7.17954315]
[1733360360878,8.6790277,226.75,226.56,1.6326]
[1733360361059,137.7,226.76,226.57,6.1975]
[1733360361260,137.7,226.75,226.57,6.1975]
[1733360361882,20.0,226.72,226.57,6.1975]
[1733360363003,20.0,226.74,226.58,0.88021677]
[1733360363200,20.0,226.74,226.59,6.3467]
[1733360363496,20.0,226.77,226.6,1.62]
[1733360363688,137.7,226.8,226.6,1.62]
[1733360363896,137.7,226.8,226.61,6.0742]
[1733360364407,146.53084393,226.8,226.63,6.0742]
[1733360365393,146.53084393,226.8,226.63,6.95416913]
[1733360365978,146.53084393,226.8,226.64,1.62]
[1733360366184,5.12796865,226.79,226.64,1.62]
[1733360366599,20.0,226.74,226.64,1.62]
[1733360369389,20.0,226.77,226.65,0.87994084]
[1733360369592,20.0,226.79,226.65,0.87994084]
[1733360370109,148.08379275,226.82,226.65,0.87994084]
[1733360370311,8.86319275,226.82,226.66,6.3746]
[1733360370610,137.7,226.86,226.66,6.3746]
[1733360370792,8.6444356,226.86,226.67,0.87989165]
[1733360370979,137.7,226.87,226.67,0.87989165]
[1733360371175,139.3138,226.88,226.68,7.8649]
[1733360371404,1.6138,226.88,226.69,0.87967095]
[1733360371707,10.38832925,226.88,226.69,0.87967095]
[1733360371893,1.6138,226.88,226.69,0.87967095]
[1733360372208,6.59675161,226.88,226.69,0.87967095]
[1733360372380,5.12796865,226.87,226.68,7.8649]
[1733360372582,10.11092026,226.87,226.68,7.8649]
[1733360373080,20.0,226.84,226.68,7.8649]
[1733360373595,20.0,226.84,226.68,8.74471078]
[1733360373803,20.0,226.85,226.68,8.74471078]
[1733360374107,20.0,226.86,226.69,6.39]
[1733360374310,20.0,226.86,226.7,0.87965691]
[1733360375016,20.0,226.86,226.71,6.0357]
[1733360379513,20.0,226.86,226.72,1.6169]
[1733360382291,20.0,226.86,226.73,6.0115]
[1733360382493,20.0,226.86,226.74,0.87960286]
[1733360382806,20.0,226.86,226.73,6.0115]
[1733360384114,20.0,226.85,226.73,6.0115]
[1733360384320,25.12796865,226.85,226.73,6.0115]
[1733360385502,20.0,226.82,226.73,6.0115]
[1733360386111,20.0,226.81,226.73,6.0115]
[1733360386287,20.0,226.78,226.68,6.0214]
[1733360386935,20.0,226.74,226.66,1.6386]
[1733360387097,20.0,226.73,226.66,1.6386]
[1733360388289,20.0,226.75,226.66,1.6386]
[1733360388623,20.0,226.78,226.66,1.6386]
[1733360389124,20.0,226.77,226.67,6.5814]
[1733360389715,20.0,226.78,226.67,6.5814]
[1733360393044,20.0,226.77,226.67,6.5814]
[1733360393344,20.0,226.74,226.67,6.5814]
[1733360395816,20.0,226.73,226.67,6.5814]
[1733360396018,20.0,226.72,226.64,1.0]
[1733360399011,20.0,226.71,226.64,1.0]
[1733360400115,20.0,226.66,226.64,1.0]
[1733360400319,20.0,226.65,226.64,1.0]
[1733360403214,157.7,226.65,226.64,1.0]
[1733360404223,166.43049902,226.65,226.64,1.0]
[1733360404428,236.43049902,226.65,226.64,1.0]
[1733360404641,105.38853269,226.65,226.64,1.0]
[1733360405020,20.0,226.61,226.5,6.4662]
[1733360405422,20.0,226.59,226.5,6.4662]
[1733360405617,20.0,226.58,226.5,6.4662]
[1733360406744,20.0,226.58,226.44,6.587]
[1733360406919,20.0,226.54,226.44,6.587]
[1733360407522,20.0,226.51,226.44,6.587]
[1733360408148,20.0,226.57,226.44,6.587]
[1733360408339,20.0,226.58,226.44,6.587]
[1733360409157,20.0,226.57,226.44,6.587]
[1733360409341,8.6386173,226.6,226.46,1.6665]
[1733360409657,137.7,226.68,226.48,6.6219]
[1733360409830,137.7,226.7,226.49,0.88050524]
[1733360410828,146.46110514,226.7,226.49,0.88050524]
[1733360411030,146.46110514,226.7,226.48,6.6219]
[1733360411359,70.0,226.68,226.48,6.6219]
[1733360411557,70.0,226.65,226.48,6.6219]
[1733360411758,137.7,226.64,226.48,6.6219]
[1733360411929,70.0,226.61,226.48,6.6219]
[1733360412257,20.0,226.58,226.48,6.6219]
[1733360412963,20.0,226.57,226.48,6.6219]
[1733360413640,20.0,226.62,226.48,6.6219]
[1733360414026,20.0,226.61,226.48,6.6219]
[1733360414231,90.0,226.61,226.48,6.6219]
[1733360414532,20.0,226.57,226.48,6.6219]
[1733360414857,90.0,226.61,226.48,6.6219]
[1733360415653,20.0,226.55,226.48,6.6219]
[1733360415853,20.0,226.54,226.48,6.6219]
[1733360416832,137.7,226.62,226.48,6.6219]
[1733360417151,137.7,226.63,226.48,6.6219]
[1733360417351,8.83709143,226.64,226.48,6.6219]
[1733360417555,137.7,226.65,226.48,6.6219]
[1733360417740,1.5216,226.66,226.48,6.6219]
[1733360418058,137.7,226.64,226.48,6.6219]
[1733360418649,70.0,226.63,226.48,6.6219]
[1733360418952,20.0,226.6,226.48,6.6219]
[1733360420937,20.0,226.55,226.48,6.6219]
[1733360425364,20.0,226.54,226.48,6.6219]
[1733360426553,20.0,226.53,226.48,6.6219]
[1733360427155,19.86439511,226.53,226.48,6.6219]
[1733360428674,19.86439511,226.53,226.46,1.6665]
[1733360429757,8.76194321,226.57,226.46,1.6665]
[1733360429758,20.0,226.54,226.46,1.6665]
[1733360431893,8.76194321,226.57,226.46,1.6665]
[1733360432180,70.0,226.62,226.43,6.2612]
[1733360432181,1.6111,226.6,226.43,6.2612]
[1733360432384,70.0,226.58,226.43,6.2612]
[1733360432752,75.12796865,226.58,226.43,6.2612]
[1733360433166,20.0,226.54,226.43,6.2612]
[1733360433371,20.0,226.5,226.43,6.2612]
[1733360434288,20.0,226.49,226.38,48.12156667]
[1733360434473,20.0,226.45,226.38,48.12156667]
[1733360435956,20.0,226.49,226.38,48.12156667]
[1733360436393,20.0,226.48,226.38,48.12156667]
[1733360436559,137.7,226.52,226.38,48.12156667]
[1733360436763,1.614,226.57,226.38,48.12156667]
[1733360436964,139.314,226.57,226.38,48.12156667]
[1733360437583,5.12796865,226.62,226.4,13.0463]
[1733360437786,5.12796865,226.62,226.43,4.9953445]
[1733360437995,4.98193822,226.64,226.44,7.6896]
[1733360438879,70.0,226.62,226.44,7.6896]
[1733360439188,137.7,226.56,226.44,7.6896]
[1733360439396,70.0,226.59,226.44,7.6896]
[1733360439697,20.0,226.56,226.44,7.6896]
[1733360441571,90.0,226.56,226.44,6.098]
[1733360441771,20.0,226.55,226.44,6.098]
[1733360441969,20.0,226.51,226.44,6.098]
[1733360445014,20.0,226.51,226.39,1.6011]
[1733360445202,20.0,226.5,226.39,1.6011]
[1733360445708,8.65197558,226.56,226.39,1.6011]
[1733360445909,137.7,226.58,226.39,1.6011]
[1733360447612,137.7,226.53,226.39,1.6011]
[1733360447918,70.0,226.56,226.39,1.6011]
[1733360447919,20.0,226.5,226.39,1.6011]
[1733360448126,20.0,226.53,226.43,1.0]
[1733360448429,20.0,226.52,226.43,1.0]
[1733360448796,20.0,226.51,226.43,1.0]
[1733360451720,20.0,226.5,226.43,1.0]
[1733360453329,20.0,226.48,226.43,1.0]
[1733360453530,20.0,226.47,226.43,1.0]
[1733360455137,20.0,226.49,226.43,1.0]
[1733360455735,28.95239065,226.49,226.43,1.0]
[1733360456328,6.72668283,226.55,226.43,1.0]
[1733360456630,8.98860297,226.55,226.44,6.3506]
[1733360456832,137.7,226.57,226.44,6.3506]
[1733360457034,137.7,226.59,226.44,6.3506]
[1733360457227,137.7,226.6,226.44,6.3506]
[1733360457428,6.72668283,226.63,226.44,6.3506]
[1733360457646,137.7,226.62,226.44,6.3506]
[1733360458514,20.0,226.59,226.44,6.3506]
[1733360459136,20.0,226.58,226.44,6.3506]
[1733360459329,137.7,226.57,226.44,6.3506]
[1733360459542,20.0,226.53,226.44,6.3506]
[1733360459838,20.0,226.52,226.44,6.3506]
[1733360460042,20.0,226.51,226.44,6.3506]
[1733360460427,70.0,226.58,226.44,6.3506]
[1733360460428,20.0,226.5,226.44,6.3506]
[1733360460624,20.0,226.49,226.44,6.3506]
[1733360463068,146.70719875,226.56,226.44,6.3506]
[1733360463363,137.7,226.6,226.44,6.3506]